[Event "22nd Hogeschool Zeeland 2018"]
[Site "Vlissingen"]
[Date "2018.08.09"]
[Round "7"]
[White "Hesse, Henrik"]
[Black "Maatman, Nick"]
[Result "0-1"]
[ECO "A10"]
[WhiteElo "2137"]
[BlackElo "2345"]
[Annotator "NA"]
[PlyCount "60"]
[EventDate "2018.08.04"]
[EventType "swiss"]
[EventCountry "NED"]
[SourceTitle "playchess.com"]
[Source "ChessBase"]
[SourceQuality "1"]
[TimeControl "40/5400+30:1800+30"]

1. c4 {[%emt 0:00:00]} g6 {[%emt 0:00:00]} 2. g3 {[%emt 0:00:23]} Bg7 {[%emt 0:00:00]} 3. Bg2 {[%emt 0:00:17]} f5 {[%emt 0:03:11]} 4. e4 {[%emt 0:20:39]} fxe4 {[%emt 0:03:30]} 5. h4 {[%emt 0:01:33]} Nf6 {[%emt 0:03:03]} 6. Nc3 {[%emt 0:13:25]} d5 {[%emt 0:07:56]} 7. cxd5 {[%emt 0:09:13]} Bf5 {[%emt 0:02:34]} 8. Qb3 {[%emt 0:15:45]} Nbd7 {[%emt 0:01:08]} 9. Nh3 {[%emt 0:05:52]} Ne5 {[%emt 0:10:04]} 10. O-O {[%emt 0:00:35]} Nf3+ {[%emt 0:01:04]} 11. Bxf3 {[%emt 0:10:37]} exf3 {[%emt 0:00:03]} 12. Ng5 {[%emt 0:00:07]} O-O {[%emt 0:04:47]} 13. Nxf3 {[%emt 0:02:56]} Ng4 {[%emt 0:05:14]} 14. Nb5 {[%emt 0:03:17]} Be4 {[%emt 0:16:52]} 15. d6+ {[%emt 0:01:40]} Kh8 {[%emt 0:01:15]} 16. Ng5 {[%emt 0:00:18]} Bc6 {[%emt 0:00:54]} 17. Ne6 {[%emt 0:05:01]} Qd7 {[%emt 0:02:00]} 18. Nbxc7 {[%emt 0:02:14]} Rf3 {[%emt 0:19:34]} 19. d3 {[%emt 0:03:07]} Ne5 {[%emt 0:02:55]} 20. Bf4 {[%emt 0:00:57]} Rxf4 {[%emt 0:00:57]} 21. Nxf4 {[%emt 0:01:43]} Nf3+ {[%emt 0:00:07]} 22. Kg2 {[%emt 0:00:05]} Nxh4+ {[%emt 0:01:33]} 23. Kh2 {[%emt 0:00:03]} Nf3+ {[%emt 0:00:06]} 24. Kg2 {[%emt 0:00:03]} Nd2+ {[%emt 0:02:06]} 25. f3 {[%emt 0:00:04]} Nxb3 {[%emt 0:00:04]} 26. axb3 {[%emt 0:00:59]} Rc8 {[%emt 0:01:02]} 27. Rxa7 {[%emt 0:00:42]} Qxd6 {[%emt 0:01:21]} 28. Nce6 {[%emt 0:00:41]} g5 {[%emt 0:03:24]} 29. Nxg5 {[%emt 0:00:24]} Qc5 {[%emt 0:00:06]} 30. Nf7+ {[%emt 0:01:34]} Kg8 {[%emt 0:00:02]} 0-1

[Event "22nd Hogeschool Zeeland 2018"]
[Site "Vlissingen"]
[Date "2018.08.09"]
[Round "7"]
[White "Gorny, Michael"]
[Black "Ree, Hans"]
[Result "0-1"]
[ECO "A55"]
[WhiteElo "2062"]
[BlackElo "2303"]
[Annotator "NA"]
[PlyCount "84"]
[EventDate "2018.08.04"]
[EventType "swiss"]
[EventCountry "NED"]
[SourceTitle "playchess.com"]
[Source "ChessBase"]
[SourceQuality "1"]
[TimeControl "40/5400+30:1800+30"]

1. d4 {[%emt 0:00:00]} d6 {[%emt 0:00:00]} 2. Nf3 {[%emt 0:00:00]} Nf6 {[%emt 0:00:01]} 3. c4 {[%emt 0:00:08]} Nbd7 {[%emt 0:00:22]} 4. Nc3 {[%emt 0:00:36]} e5 {[%emt 0:00:05]} 5. e4 {[%emt 0:00:48]} Be7 {[%emt 0:00:07]} 6. Be2 {[%emt 0:01:59]} O-O {[%emt 0:00:11]} 7. O-O {[%emt 0:01:05]} c6 {[%emt 0:00:11]} 8. Qc2 {[%emt 0:01:52]} a6 {[%emt 0:00:46]} 9. Rd1 {[%emt 0:04:27]} Qc7 {[%emt 0:00:23]} 10. h3 {[%emt 0:02:19]} b5 {[%emt 0:01:03]} 11. b3 {[%emt 0:08:11]} b4 {[%emt 0:03:41]} 12. Na4 {[%emt 0:01:47]} c5 {[%emt 0:00:39]} 13. dxc5 {[%emt 0:05:27]} dxc5 {[%emt 0:02:16]} 14. Be3 {[%emt 0:13:08]} Re8 {[%emt 0:02:27]} 15. Nd2 {[%emt 0:02:31]} Nf8 {[%emt 0:00:54]} 16. Qb2 {[%emt 0:05:46]} Bd6 {[%emt 0:04:19]} 17. Bf3 {[%emt 0:00:50]} Ne6 {[%emt 0:00:22]} 18. Bg4 {[%emt 0:00:15]} Nxg4 {[%emt 0:00:43]} 19. hxg4 {[%emt 0:00:07]} Nd4 {[%emt 0:00:15]} 20. f3 {[%emt 0:00:33]} Bd7 {[%emt 0:00:44]} 21. Kf2 {[%emt 0:03:32]} Bxa4 {[%emt 0:02:17]} 22. bxa4 {[%emt 0:00:07]} Qa5 {[%emt 0:00:33]} 23. Rh1 {[%emt 0:00:38]} f6 {[%emt 0:00:38]} 24. g5 {[%emt 0:01:30]} fxg5 {[%emt 0:00:27]} 25. Bxg5 {[%emt 0:00:36]} Qxa4 {[%emt 0:00:32]} 26. Rac1 {[%emt 0:01:29]} Qd7 {[%emt 0:03:29]} 27. Nf1 {[%emt 0:00:13]} Be7 {[%emt 0:01:55]} 28. Be3 {[%emt 0:01:18]} Qd8 {[%emt 0:01:56]} 29. Qd2 {[%emt 0:00:24]} Bh4+ {[%emt 0:01:40]} 30. g3 {[%emt 0:03:18]} Be7 {[%emt 0:03:15]} 31. Kg2 {[%emt 0:00:55]} Ra7 {[%emt 0:00:35]} 32. Rh5 {[%emt 0:00:32]} Rd7 {[%emt 0:00:51]} 33. Qf2 {[%emt 0:06:36]} Bf6 {[%emt 0:00:52]} 34. Nd2 {[%emt 0:02:25]} g6 {[%emt 0:00:26]} 35. Rh3 {[%emt 0:01:57]} Rf8 {[%emt 0:01:27]} 36. Bh6 {[%emt 0:06:28]} Rff7 {[%emt 0:02:38]} 37. Rf1 {[%emt 0:03:11]} Bg5 {[%emt 0:03:34]} 38. f4 {[%emt 0:04:22]} Bxh6 {[%emt 0:01:00]} 39. Rxh6 {[%emt 0:00:12]} exf4 {[%emt 0:00:11]} 40. gxf4 {[%emt 0:00:22]} Ne6 {[%emt 0:00:13]} 41. Nf3 {[%emt 0:31:30]} Rxf4 {[%emt 0:32:02]} 42. Qg3 {[%emt 0:00:41]} Rdf7 {[%emt 0:02:26]} 0-1

[Event "22nd Hogeschool Zeeland 2018"]
[Site "Vlissingen"]
[Date "2018.08.10"]
[Round "8"]
[White "Romanishin, Oleg M"]
[Black "Ravi, Teja S"]
[Result "1-0"]
[ECO "D22"]
[WhiteElo "2441"]
[BlackElo "2374"]
[Annotator "RC"]
[PlyCount "85"]
[EventDate "2018.08.04"]
[EventType "swiss"]
[EventCountry "NED"]
[SourceTitle "playchess.com"]
[Source "ChessBase"]
[SourceQuality "1"]
[TimeControl "40/5400+30:1800+30"]

1. d4 {[%emt 0:00:25]} d5 {[%emt 0:00:00]} 2. Nf3 {[%emt 0:00:06]} Nf6 {[%emt 0:00:00]} 3. c4 {[%emt 0:00:04]} dxc4 {[%emt 0:01:47]} 4. e3 {[%emt 0:00:39]} Bg4 {[%emt 0:00:07]} 5. Bxc4 {[%emt 0:00:11]} e6 {[%emt 0:00:03]} 6. Nc3 {[%emt 0:00:24]} a6 {[%emt 0:00:41]} 7. h3 {[%emt 0:01:29]} Bh5 {[%emt 0:00:18]} 8. g4 {[%emt 0:02:22]} Bg6 {[%emt 0:00:06]} 9. Ne5 {[%emt 0:00:05]} Nfd7 {[%emt 0:07:20]} 10. Nxg6 {[%emt 0:03:22]} hxg6 {[%emt 0:00:19]} 11. Bf1 {[%emt 0:02:23]} Nc6 {[%emt 0:07:36]} 12. Bg2 {[%emt 0:00:28]} Nb6 {[%emt 0:00:08]} 13. O-O {[%emt 0:08:57]} Bd6 {[%emt 0:04:12]} 14. Bd2 {[%emt 0:16:02]} e5 {[%emt 0:04:11]} 15. dxe5 {[%emt 0:01:18]} Bxe5 {[%emt 0:00:42]} 16. Qe2 {[%emt 0:05:01]} Qe7 {[%emt 0:08:00]} 17. f4 {[%emt 0:11:22]} Bd6 {[%emt 0:02:19]} 18. Ne4 {[%emt 0:01:48]} O-O-O {[%emt 0:03:21]} 19. Rac1 {[%emt 0:01:02]} f5 {[%emt 0:03:01]} 20. gxf5 {[%emt 0:03:44]} gxf5 {[%emt 0:00:28]} 21. Ng3 {[%emt 0:00:19]} g6 {[%emt 0:13:56]} 22. Rxc6 {[%emt 0:03:10]} bxc6 {[%emt 0:02:20]} 23. Bxc6 {[%emt 0:09:30]} Rdf8 {[%emt 0:00:24]} 24. Qxa6+ {[%emt 0:02:04]} Kd8 {[%emt 0:00:02]} 25. Bg2 {[%emt 0:00:17]} g5 {[%emt 0:01:45]} 26. Ne2 {[%emt 0:03:49]} Bc5 {[%emt 0:03:18]} 27. Rd1 {[%emt 0:05:32]} Qd6 {[%emt 0:03:53]} 28. Nc3 {[%emt 0:00:10]} Qxf4 {[%emt 0:03:00]} 29. b4 {[%emt 0:02:00]} Qxb4 {[%emt 0:07:40]} 30. Ne4 {[%emt 0:01:11]} Qa4 {[%emt 0:00:08]} 31. Qxa4 {[%emt 0:00:05]} Nxa4 {[%emt 0:00:03]} 32. Bb4+ {[%emt 0:02:39]} Bd6 {[%emt 0:07:16]} 33. Nxd6 {[%emt 0:00:15]} cxd6 {[%emt 0:00:06]} 34. Rxd6+ {[%emt 0:00:43]} Kc7 {[%emt 0:00:46]} 35. Ra6 {[%emt 0:04:58]} Re8 {[%emt 0:04:38]} 36. Bd6+ {[%emt 0:02:55]} Kd7 {[%emt 0:01:57]} 37. Bc6+ {[%emt 0:00:11]} Kxd6 {[%emt 0:00:25]} 38. Bxe8+ {[%emt 0:00:08]} Ke5 {[%emt 0:04:25]} 39. Bxa4 {[%emt 0:00:11]} Rxh3 {[%emt 0:00:06]} 40. Ra5+ {[%emt 0:01:21]} Ke4 {[%emt 0:03:30]} 41. Bc6+ {[%emt 0:31:54]} Kd3 {[%emt 0:30:10]} 42. Rxf5 {[%emt 0:01:57]} Rxe3 {[%emt 0:00:08]} 43. Rf3 {[%emt 0:00:31]} 1-0

[Event "22nd Hogeschool Zeeland 2018"]
[Site "Vlissingen"]
[Date "2018.08.11"]
[Round "8"]
[White "Grochal, Joey"]
[Black "Henrichs, Thomas"]
[Result "1-0"]
[ECO "E92"]
[WhiteElo "2300"]
[BlackElo "2486"]
[Annotator "RC"]
[PlyCount "197"]
[EventDate "2018.08.04"]
[EventType "swiss"]
[EventCountry "NED"]
[SourceTitle "playchess.com"]
[Source "ChessBase"]
[SourceQuality "1"]
[TimeControl "40/5400+30:1800+30"]

1. d4 {[%emt 0:00:00]} Nf6 {[%emt 0:00:00]} 2. c4 {[%emt 0:00:00]} g6 {[%emt 0:00:32]} 3. Nc3 {[%emt 0:00:00]} Bg7 {[%emt 0:00:09]} 4. e4 {[%emt 0:00:00]} d6 {[%emt 0:00:08]} 5. Nf3 {[%emt 0:00:41]} O-O {[%emt 0:00:20]} 6. Be2 {[%emt 0:00:06]} e5 {[%emt 0:00:48]} 7. d5 {[%emt 0:00:06]} Na6 {[%emt 0:00:25]} 8. Bg5 {[%emt 0:00:28]} h6 {[%emt 0:00:25]} 9. Bh4 {[%emt 0:00:07]} g5 {[%emt 0:04:16]} 10. Bg3 {[%emt 0:00:21]} Nh5 {[%emt 0:00:45]} 11. h4 {[%emt 0:04:11]} g4 {[%emt 0:00:26]} 12. Nd2 {[%emt 0:02:10]} Nxg3 {[%emt 0:02:56]} 13. fxg3 {[%emt 0:00:02]} h5 {[%emt 0:01:09]} 14. O-O {[%emt 0:02:00]} Bh6 {[%emt 0:10:24]} 15. Bd3 {[%emt 0:06:42]} c6 {[%emt 0:02:17]} 16. Kh2 {[%emt 0:05:52]} Kg7 {[%emt 0:09:37]} 17. Qe2 {[%emt 0:03:25]} Qb6 {[%emt 0:06:19]} 18. Nb3 {[%emt 0:05:55]} Qe3 {[%emt 0:04:38]} 19. Rae1 {[%emt 0:02:33]} Qxe2 {[%emt 0:01:07]} 20. Rxe2 {[%emt 0:00:11]} f6 {[%emt 0:02:45]} 21. Na5 {[%emt 0:06:57]} Nc5 {[%emt 0:02:42]} 22. Bc2 {[%emt 0:04:31]} cxd5 {[%emt 0:03:05]} 23. Nxd5 {[%emt 0:02:12]} Ne6 {[%emt 0:05:46]} 24. Ref2 {[%emt 0:03:35]} Nd4 {[%emt 0:00:44]} 25. Bd3 {[%emt 0:01:27]} Be6 {[%emt 0:07:20]} 26. Nxf6 {[%emt 0:11:54]} b6 {[%emt 0:08:02]} 27. Nb3 {[%emt 0:09:01]} Nf3+ {[%emt 0:05:09]} 28. gxf3 {[%emt 0:01:13]} Rxf6 {[%emt 0:00:09]} 29. f4 {[%emt 0:05:30]} Rc8 {[%emt 0:01:09]} 30. Nd2 {[%emt 0:00:52]} Rcf8 {[%emt 0:05:00]} 31. f5 {[%emt 0:00:35]} Bg8 {[%emt 0:00:55]} 32. Re2 {[%emt 0:03:50]} Rc8 {[%emt 0:00:41]} 33. b3 {[%emt 0:00:59]} Rff8 {[%emt 0:03:57]} 34. Nb1 {[%emt 0:00:59]} a6 {[%emt 0:00:24]} 35. Kg2 {[%emt 0:04:21]} Kf6 {[%emt 0:00:35]} 36. Kf2 {[%emt 0:04:03]} Rc5 {[%emt 0:00:32]} 37. Rb2 {[%emt 0:07:19]} Rb8 {[%emt 0:01:54]} 38. a4 {[%emt 0:02:51]} b5 {[%emt 0:01:13]} 39. axb5 {[%emt 0:00:38]} axb5 {[%emt 0:00:11]} 40. cxb5 {[%emt 0:00:50]} d5 {[%emt 0:03:31]} 41. Ra2 {[%emt 0:09:28]} Bf7 {[%emt 0:07:49]} 42. Ra6+ {[%emt 0:03:31]} Kg7 {[%emt 0:01:13]} 43. b4 {[%emt 0:04:58]} Rcxb5 {[%emt 0:02:21]} 44. Bxb5 {[%emt 0:00:24]} Rxb5 {[%emt 0:00:22]} 45. exd5 {[%emt 0:02:43]} Rxb4 {[%emt 0:01:19]} 46. Rd1 {[%emt 0:02:23]} Rb2+ {[%emt 0:01:23]} 47. Ke1 {[%emt 0:01:42]} Be3 {[%emt 0:00:37]} 48. Ra3 {[%emt 0:03:35]} Bf2+ {[%emt 0:01:03]} 49. Kf1 {[%emt 0:00:01]} Bd4 {[%emt 0:00:16]} 50. Nc3 {[%emt 0:02:47]} Rf2+ {[%emt 0:10:16]} 51. Ke1 {[%emt 0:00:01]} Rf3 {[%emt 0:00:29]} 52. d6 {[%emt 0:02:45]} Bf2+ {[%emt 0:02:37]} 53. Kd2 {[%emt 0:00:08]} Bxg3 {[%emt 0:00:11]} 54. Ne4 {[%emt 0:01:31]} Rxa3 {[%emt 0:01:05]} 55. Nxg3 {[%emt 0:00:07]} Kf6 {[%emt 0:02:04]} 56. Ne4+ {[%emt 0:01:52]} Kxf5 {[%emt 0:00:25]} 57. d7 {[%emt 0:00:15]} Ra8 {[%emt 0:00:59]} 58. Nc5 {[%emt 0:00:35]} Be8 {[%emt 0:03:26]} 59. Rf1+ {[%emt 0:00:59]} Kg6 {[%emt 0:00:12]} 60. dxe8=Q+ {[%emt 0:01:12]} Rxe8 {[%emt 0:00:10]} 61. Ke3 {[%emt 0:00:07]} Ra8 {[%emt 0:00:40]} 62. Ke4 {[%emt 0:00:48]} Ra5 {[%emt 0:00:32]} 63. Nd3 {[%emt 0:00:15]} Ra4+ {[%emt 0:00:39]} 64. Kxe5 {[%emt 0:00:09]} Ra2 {[%emt 0:00:18]} 65. Rf6+ {[%emt 0:00:58]} Kg7 {[%emt 0:00:09]} 66. Rf5 {[%emt 0:00:14]} Rh2 {[%emt 0:00:24]} 67. Rxh5 {[%emt 0:00:53]} g3 {[%emt 0:00:10]} 68. Rg5+ {[%emt 0:00:27]} Kh6 {[%emt 0:00:53]} 69. Nf4 {[%emt 0:00:43]} Rxh4 {[%emt 0:00:16]} 70. Rxg3 {[%emt 0:00:08]} Kh7 {[%emt 0:00:55]} 71. Ne6 {[%emt 0:00:29]} Rh1 {[%emt 0:00:23]} 72. Kf6 {[%emt 0:00:41]} Rf1+ {[%emt 0:00:25]} 73. Ke7 {[%emt 0:00:17]} Re1 {[%emt 0:00:13]} 74. Rg5 {[%emt 0:00:09]} Kh6 {[%emt 0:00:13]} 75. Rg2 {[%emt 0:00:51]} Rf1 {[%emt 0:00:53]} 76. Nd4 {[%emt 0:00:12]} Rf4 {[%emt 0:00:20]} 77. Ne6 {[%emt 0:00:47]} Rf1 {[%emt 0:00:17]} 78. Kd6 {[%emt 0:00:18]} Re1 {[%emt 0:00:38]} 79. Rg3 {[%emt 0:00:35]} Rd1+ {[%emt 0:00:31]} 80. Ke5 {[%emt 0:00:25]} Re1+ {[%emt 0:00:28]} 81. Kf5 {[%emt 0:00:07]} Rf1+ {[%emt 0:00:26]} 82. Nf4 {[%emt 0:00:08]} Kh7 {[%emt 0:00:26]} 83. Ke5 {[%emt 0:00:25]} Ra1 {[%emt 0:00:26]} 84. Kf6 {[%emt 0:00:28]} Rf1 {[%emt 0:00:50]} 85. Rg4 {[%emt 0:00:29]} Ra1 {[%emt 0:00:50]} 86. Nd5 {[%emt 0:01:09]} Rf1+ {[%emt 0:00:26]} 87. Ke6 {[%emt 0:00:17]} Ra1 {[%emt 0:00:55]} 88. Kf7 {[%emt 0:01:02]} Ra7+ {[%emt 0:00:22]} 89. Kf6 {[%emt 0:00:23]} Ra6+ {[%emt 0:00:18]} 90. Kf7 {[%emt 0:00:56]} Ra7+ {[%emt 0:00:16]} 91. Kf6 {[%emt 0:00:26]} Ra6+ {[%emt 0:00:10]} 92. Kf5 {[%emt 0:00:16]} Ra5 {[%emt 0:00:18]} 93. Ke5 {[%emt 0:00:53]} Ra1 {[%emt 0:00:22]} 94. Nf4 {[%emt 0:00:37]} Ra5+ {[%emt 0:00:45]} 95. Kf6 {[%emt 0:00:05]} Ra6+ {[%emt 0:00:26]} 96. Ne6 {[%emt 0:00:03]} Ra1 {[%emt 0:00:21]} 97. Nf8+ {[%emt 0:01:02]} Kh8 {[%emt 0:00:37]} 98. Ng6+ {[%emt 0:00:09]} Kg8 {[%emt 0:00:12]} 99. Ne7+ {[%emt 0:00:06]} 1-0

[Event "22nd Hogeschool Zeeland 2018"]
[Site "Vlissingen"]
[Date "2018.08.10"]
[Round "8"]
[White "Sparenberg, Erik"]
[Black "Beerdsen, Thomas"]
[Result "0-1"]
[ECO "C63"]
[WhiteElo "2173"]
[BlackElo "2469"]
[Annotator "ChessBase"]
[PlyCount "48"]
[EventDate "2018.08.04"]
[EventType "swiss"]
[EventCountry "NED"]
[SourceTitle "playchess.com"]
[Source "ChessBase"]
[SourceQuality "1"]
[TimeControl "40/5400+30:1800+30"]

1. e4 {[%emt 0:00:00]} e5 {[%emt 0:07:51]} 2. Nf3 {[%emt 0:02:23]} Nc6 {[%emt 0:00:05]} 3. Bb5 {[%emt 0:00:06]} f5 {[%emt 0:00:04]} 4. d4 {[%emt 0:01:10]} fxe4 {[%emt 0:00:41]} 5. Nxe5 {[%emt 0:00:08]} Nxe5 {[%emt 0:00:11]} 6. dxe5 {[%emt 0:00:03]} c6 {[%emt 0:00:08]} 7. Nc3 {[%emt 0:00:42]} cxb5 {[%emt 0:00:06]} 8. Nxe4 {[%emt 0:00:12]} d5 {[%emt 0:00:05]} 9. exd6 {[%emt 0:00:29]} Nf6 {[%emt 0:00:06]} 10. Bg5 {[%emt 0:04:01]} Qa5+ {[%emt 0:00:10]} 11. Bd2 {[%emt 0:03:56]} b4 {[%emt 0:00:23]} 12. Nxf6+ {[%emt 0:02:40]} gxf6 {[%emt 0:00:04]} 13. O-O {[%emt 0:01:10]} Bxd6 {[%emt 0:00:39]} 14. Bh6 {[%emt 0:09:33]} Bc7 {[%emt 0:07:40]} 15. Bg7 {[%emt 0:29:26]} Rg8 {[%emt 0:01:13]} 16. Bxf6 {[%emt 0:00:03]} Qf5 {[%emt 0:02:03]} 17. Re1+ {[%emt 0:11:29]} Be6 {[%emt 0:00:40]} 18. Rxe6+ {[%emt 0:01:00]} Qxe6 {[%emt 0:00:05]} 19. Qh5+ {[%emt 0:04:54]} Kd7 {[%emt 0:00:06]} 20. Rd1+ {[%emt 0:00:35]} Kc8 {[%emt 0:00:09]} 21. Bh4 {[%emt 0:03:14]} a5 {[%emt 0:01:58]} 22. Bg3 {[%emt 0:05:26]} Qg4 {[%emt 0:04:00]} 23. Rd8+ {[%emt 0:01:45]} Kxd8 {[%emt 0:00:26]} 24. Bxc7+ {[%emt 0:00:56]} Kc8 {[%emt 0:00:03]} 0-1

[Event "22nd Hogeschool Zeeland 2018"]
[Site "Vlissingen"]
[Date "2018.08.10"]
[Round "8"]
[White "Wagenvoorde, Guido"]
[Black "Van der Lende, Ilias"]
[Result "1-0"]
[ECO "D26"]
[WhiteElo "2035"]
[BlackElo "2347"]
[Annotator "RC"]
[PlyCount "83"]
[EventDate "2018.08.04"]
[EventType "swiss"]
[EventCountry "NED"]
[SourceTitle "playchess.com"]
[Source "ChessBase"]
[SourceQuality "1"]
[TimeControl "40/5400+30:1800+30"]

1. d4 {[%emt 0:00:21]} d5 {[%emt 0:03:08]} 2. c4 {[%emt 0:00:08]} dxc4 {[%emt 0:00:07]} 3. Nf3 {[%emt 0:00:21]} a6 {[%emt 0:00:46]} 4. e3 {[%emt 0:03:10]} Nf6 {[%emt 0:01:25]} 5. Bxc4 {[%emt 0:00:17]} e6 {[%emt 0:00:40]} 6. O-O {[%emt 0:00:18]} b5 {[%emt 0:00:57]} 7. Be2 {[%emt 0:01:05]} Bb7 {[%emt 0:00:15]} 8. Nbd2 {[%emt 0:01:50]} Nbd7 {[%emt 0:00:07]} 9. a4 {[%emt 0:06:56]} b4 {[%emt 0:00:06]} 10. a5 {[%emt 0:00:40]} Be7 {[%emt 0:05:08]} 11. Nb3 {[%emt 0:04:55]} O-O {[%emt 0:01:47]} 12. Bd2 {[%emt 0:01:24]} Bd5 {[%emt 0:05:32]} 13. Qc2 {[%emt 0:07:45]} Qb8 {[%emt 0:11:16]} 14. Rfc1 {[%emt 0:07:21]} c5 {[%emt 0:02:57]} 15. Nxc5 {[%emt 0:05:42]} Nxc5 {[%emt 0:05:39]} 16. dxc5 {[%emt 0:00:08]} Rc8 {[%emt 0:00:08]} 17. b3 {[%emt 0:08:34]} Ne4 {[%emt 0:03:30]} 18. Ra4 {[%emt 0:10:11]} Nxd2 {[%emt 0:18:01]} 19. Nxd2 {[%emt 0:00:57]} Rxc5 {[%emt 0:03:00]} 20. Nc4 {[%emt 0:01:29]} Qc7 {[%emt 0:03:06]} 21. Rxb4 {[%emt 0:12:02]} Bxg2 {[%emt 0:00:30]} 22. f4 {[%emt 0:06:18]} Bd5 {[%emt 0:01:59]} 23. Ra4 {[%emt 0:02:36]} Rc8 {[%emt 0:03:07]} 24. Qd2 {[%emt 0:02:20]} Qb7 {[%emt 0:02:11]} 25. Rb4 {[%emt 0:03:32]} Rb5 {[%emt 0:08:19]} 26. Rxb5 {[%emt 0:00:19]} Qxb5 {[%emt 0:00:12]} 27. Qd3 {[%emt 0:09:41]} Bc5 {[%emt 0:11:20]} 28. Kf1 {[%emt 0:00:26]} Bb4 {[%emt 0:04:24]} 29. Rc2 {[%emt 0:01:00]} f5 {[%emt 0:03:32]} 30. Nd6 {[%emt 0:00:49]} Rxc2 {[%emt 0:01:00]} 31. Nxb5 {[%emt 0:00:09]} Rc1+ {[%emt 0:00:21]} 32. Kf2 {[%emt 0:00:24]} Be1+ {[%emt 0:00:20]} 33. Kg1 {[%emt 0:00:22]} Bxa5+ {[%emt 0:00:31]} 34. Bf1 {[%emt 0:00:24]} Bb6 {[%emt 0:01:08]} 35. Nd4 {[%emt 0:01:02]} h6 {[%emt 0:00:13]} 36. Nxf5 {[%emt 0:01:27]} Kh8 {[%emt 0:00:47]} 37. Ne7 {[%emt 0:00:49]} Rd1 {[%emt 0:00:30]} 38. Qc3 {[%emt 0:00:48]} Bb7 {[%emt 0:00:18]} 39. Kf2 {[%emt 0:00:35]} Rd7 {[%emt 0:00:42]} 40. Ng6+ {[%emt 0:00:20]} Kg8 {[%emt 0:00:04]} 41. Bc4 {[%emt 0:01:38]} Rd6 {[%emt 0:02:04]} 42. Qb4 {[%emt 0:02:20]} 1-0

[Event "22nd Hogeschool Zeeland 2018"]
[Site "Vlissingen"]
[Date "2018.08.11"]
[Round "9"]
[White "Beerdsen, Thomas"]
[Black "Maatman, Nick"]
[Result "1-0"]
[ECO "C06"]
[WhiteElo "2469"]
[BlackElo "2345"]
[Annotator "ChessBase"]
[PlyCount "61"]
[EventDate "2018.08.04"]
[EventType "swiss"]
[EventCountry "NED"]
[SourceTitle "playchess.com"]
[Source "ChessBase"]
[SourceQuality "1"]
[TimeControl "40/5400+30:1800+30"]

1. e4 {[%emt 0:02:16]} e6 {[%emt 0:00:00]} 2. d4 {[%emt 0:00:30]} d5 {[%emt 0:00:04]} 3. Nd2 {[%emt 0:00:06]} Nf6 {[%emt 0:00:07]} 4. e5 {[%emt 0:00:36]} Nfd7 {[%emt 0:00:02]} 5. Bd3 {[%emt 0:00:08]} c5 {[%emt 0:00:04]} 6. c3 {[%emt 0:00:04]} Nc6 {[%emt 0:00:06]} 7. Ne2 {[%emt 0:00:05]} cxd4 {[%emt 0:00:18]} 8. cxd4 {[%emt 0:00:08]} f6 {[%emt 0:00:06]} 9. exf6 {[%emt 0:00:03]} Nxf6 {[%emt 0:00:10]} 10. Nf3 {[%emt 0:00:05]} Bd6 {[%emt 0:01:31]} 11. O-O {[%emt 0:00:07]} Qc7 {[%emt 0:04:17]} 12. Bd2 {[%emt 0:00:52]} O-O {[%emt 0:00:27]} 13. Rc1 {[%emt 0:00:17]} a6 {[%emt 0:08:12]} 14. Re1 {[%emt 0:05:37]} Bd7 {[%emt 0:10:19]} 15. Nc3 {[%emt 0:01:26]} Rae8 {[%emt 0:16:16]} 16. Na4 {[%emt 0:00:10]} Qd8 {[%emt 0:08:50]} 17. Nc5 {[%emt 0:14:37]} Bc8 {[%emt 0:00:36]} 18. Bg5 {[%emt 0:09:20]} e5 {[%emt 0:09:11]} 19. Bxf6 {[%emt 0:15:03]} Qxf6 {[%emt 0:06:27]} 20. Qb3 {[%emt 0:00:13]} Qf7 {[%emt 0:10:24]} 21. Ng5 {[%emt 0:05:01]} Qxf2+ {[%emt 0:01:20]} 22. Kh1 {[%emt 0:01:15]} Qxd4 {[%emt 0:03:40]} 23. Nxb7 {[%emt 0:05:21]} Bxb7 {[%emt 0:07:09]} 24. Bxh7+ {[%emt 0:01:38]} Kh8 {[%emt 0:00:01]} 25. Qh3 {[%emt 0:00:09]} Rf4 {[%emt 0:03:33]} 26. Be4+ {[%emt 0:00:10]} Kg8 {[%emt 0:00:33]} 27. Qh7+ {[%emt 0:00:05]} Kf8 {[%emt 0:00:01]} 28. Qh8+ {[%emt 0:00:06]} Ke7 {[%emt 0:00:03]} 29. Qxg7+ {[%emt 0:00:05]} Kd8 {[%emt 0:00:09]} 30. Qxb7 {[%emt 0:00:04]} Qb4 {[%emt 0:02:19]} 31. Qxc6 {[%emt 0:00:19]} 1-0